bitfinex-derivatives/quotes_BNBF0:USTF0_20250715
["timestamp","ask_amount","ask_price","bid_price","bid_amount"]
[1752579402960,0.98651748,678.05,677.26,0.99213858]
[1752579403160,0.98651748,678.05,677.23,0.2567432]
[1752579403161,0.98651748,678.02,677.23,0.2567432]
[1752579403357,0.98651748,678.01,677.23,1.24888178]
[1752579404061,0.98651748,678.02,677.23,0.2567432]
[1752579404461,0.98651748,678.01,677.23,1.24888178]
[1752579405464,0.98651748,678.01,677.24,0.99213858]
[1752579405764,0.98651748,677.99,677.25,0.99213858]
[1752579406160,0.98651748,677.98,677.25,0.99213858]
[1752579406363,0.98651748,677.98,677.23,0.2567432]
[1752579406364,0.98651748,677.98,677.26,0.99213858]
[1752579407365,0.98651748,677.97,677.27,0.99213858]
[1752579408360,0.98651748,677.97,677.28,0.99213858]
[1752579408566,0.98651748,677.99,677.27,0.99213858]
[1752579409465,0.98651748,677.98,677.27,0.99213858]
[1752579410166,0.98651748,677.97,677.28,0.99213858]
[1752579410464,0.98651748,677.96,677.29,0.99213858]
[1752579411166,0.98651748,677.95,677.29,0.99213858]
[1752579411465,0.98651748,677.94,677.31,0.99213858]
[1752579411761,0.98651748,677.95,677.3,0.99213858]
[1752579412361,0.98651748,677.94,677.32,0.99213858]
[1752579413268,0.98651748,677.94,677.31,0.99213858]
[1752579413467,0.98651748,677.97,677.29,0.99213858]
[1752579414470,0.98651748,677.98,677.29,0.99213858]
[1752579414766,0.98651748,678.03,677.33,0.99213858]
[1752579414972,0.98651748,678.04,677.36,0.99213858]
[1752579416069,0.98651748,678.05,677.37,0.99213858]
[1752579416372,0.98651748,678.04,677.38,0.99213858]
[1752579416568,0.98651748,678.04,677.39,0.99213858]
[1752579417469,0.98651748,678.08,677.43,0.99213858]
[1752579417674,0.98651748,678.06,677.44,0.99213858]
[1752579418074,0.98651748,678.06,677.45,0.99213858]
[1752579418674,0.98651748,678.04,677.46,0.99213858]
[1752579419872,0.98651748,678.02,677.48,0.99213858]
[1752579420577,0.98651748,678.04,677.5,0.99213858]
[1752579420973,0.98651748,678.05,677.51,0.99213858]
[1752579421274,0.98651748,678.06,677.52,0.99213858]
[1752579422079,0.98651748,678.09,677.5,0.99213858]
[1752579423177,0.98651748,678.1,677.5,0.99213858]
[1752579424578,0.98651748,678.11,677.49,0.99213858]
[1752579425178,0.98651748,678.11,677.48,0.99213858]
[1752579425378,0.98651748,678.12,677.48,0.99213858]
[1752579425582,0.98651748,678.13,677.48,0.99213858]
[1752579425877,0.98651748,678.14,677.48,0.99213858]
[1752579426082,0.98651748,678.14,677.47,0.99213858]
[1752579427785,0.98651748,678.2,677.53,0.99213858]
[1752579428284,0.98651748,678.21,677.53,0.99213858]
[1752579428486,0.98651748,678.22,677.55,0.99213858]
[1752579429184,0.98651748,678.22,677.54,0.99213858]
[1752579430087,0.98651748,678.23,677.54,0.99213858]
[1752579430284,0.98651748,678.22,677.54,0.99213858]
[1752579433493,0.98651748,678.27,677.58,0.99213858]
[1752579434392,0.98651748,678.27,677.57,0.99213858]
[1752579435196,0.98651748,678.28,677.57,0.99213858]
[1752579435492,0.98651748,678.27,677.58,0.99213858]
[1752579436193,0.98651748,678.27,677.57,0.99213858]
[1752579437294,0.2566968,678.31,677.56,0.99213858]
[1752579437295,0.98651748,678.28,677.56,0.99213858]
[1752579437697,0.98651748,678.29,677.55,0.99213858]
[1752579438702,0.2566968,678.31,677.53,0.99213858]
[1752579439301,0.2566968,678.31,677.52,0.99213858]
[1752579441197,0.2566968,678.31,677.51,0.99213858]
[1752579441801,0.2566968,678.31,677.52,0.99213858]
[1752579442102,0.2566968,678.31,677.51,0.99213858]
[1752579444402,0.2566968,678.31,677.5,0.99213858]
[1752579445897,0.98651748,678.33,677.5,0.99213858]
[1752579446499,0.98651748,678.29,677.53,0.99213858]
[1752579447002,0.98651748,678.28,677.53,0.99213858]
[1752579447199,0.98651748,678.28,677.54,0.99213858]
[1752579447399,0.98651748,678.32,677.57,0.99213858]
[1752579447700,0.98651748,678.35,677.6,0.99213858]
[1752579447902,0.98651748,678.38,677.63,0.99213858]
[1752579448604,0.98651748,678.43,677.68,0.99213858]
[1752579449201,0.98651748,678.45,677.66,0.99213858]
[1752579449399,0.98651748,678.46,677.66,0.99213858]
[1752579449905,0.98651748,678.46,677.67,0.99213858]
[1752579450203,0.98651748,678.48,677.67,0.99213858]
[1752579451003,0.98651748,678.5,677.69,0.99213858]
[1752579452108,0.98651748,678.5,677.68,0.99213858]
[1752579453202,0.98651748,678.51,677.67,0.99213858]
[1752579453709,0.98651748,678.57,677.73,0.99213858]
[1752579454206,0.98651748,678.58,677.72,0.99213858]
[1752579455211,0.98651748,678.58,677.71,0.99213858]
[1752579455811,0.98651748,678.59,677.71,0.99213858]
[1752579456409,0.98651748,678.59,677.7,0.99213858]
[1752579457013,0.98651748,678.59,677.69,0.99213858]
[1752579457214,0.98651748,678.58,677.66,0.99213858]
[1752579457412,0.98651748,678.54,677.62,0.99213858]
[1752579457813,0.98651748,678.51,677.59,0.99213858]
[1752579459110,0.25657851,678.63,677.37,0.2566968]
[1752579459111,0.98651748,678.49,677.6,0.99213858]
[1752579460217,0.98651748,678.5,677.59,0.99213858]
[1752579461018,0.98651748,678.49,677.6,0.99213858]
[1752579465120,0.98651748,678.49,677.59,0.99213858]
[1752579465423,0.98651748,678.49,677.6,0.99213858]
[1752579466821,0.98651748,678.48,677.61,0.99213858]
[1752579468321,0.98651748,678.47,677.62,0.99213858]
[1752579469022,0.98651748,678.52,677.59,0.99213858]
[1752579469322,0.98651748,678.52,677.6,0.99213858]
[1752579469824,0.98651748,678.52,677.59,0.99213858]
[1752579470024,0.98651748,678.6,677.54,0.99213858]
[1752579470224,0.98651748,678.56,677.5,0.99213858]
[1752579470420,0.98651748,678.55,677.5,0.99213858]
[1752579470825,0.98651748,678.53,677.48,0.99213858]
[1752579471126,0.98651748,678.5,677.46,0.99213858]
[1752579472227,0.98651748,678.5,677.47,0.99213858]
[1752579472429,0.98651748,678.49,677.47,0.99213858]
[1752579473327,0.98651748,678.49,677.49,0.99213858]
[1752579474330,0.25657851,678.63,677.5,0.99213858]
[1752579474331,0.98651748,678.47,677.5,0.99213858]
[1752579474629,0.98651748,678.48,677.5,0.99213858]
[1752579474826,0.98651748,678.45,677.48,0.99213858]
[1752579475429,0.98651748,678.45,677.49,0.99213858]
[1752579476331,0.98651748,678.44,677.5,0.99213858]
[1752579477233,0.98651748,678.43,677.51,0.99213858]
[1752579478230,0.98651748,678.43,677.52,0.99213858]
[1752579479234,0.98651748,678.43,677.53,0.99213858]
[1752579479833,0.98651748,678.34,677.58,0.99213858]
[1752579481435,0.98651748,678.34,677.59,0.99213858]
[1752579482335,0.98651748,678.33,677.59,0.99213858]
[1752579483341,0.98651748,678.33,677.6,0.99213858]
[1752579484041,0.98651748,678.32,677.61,0.99213858]
[1752579484337,0.98651748,678.31,677.62,0.99213858]
[1752579485144,0.98651748,678.31,677.63,0.99213858]
[1752579486144,1.3172578,678.44,677.63,0.99213858]
[1752579486145,0.98651748,678.3,677.63,0.99213858]
[1752579487145,0.98651748,678.3,677.64,0.99213858]
[1752579487342,0.98651748,678.32,677.63,0.99213858]
[1752579488444,0.98651748,678.32,677.64,0.99213858]
[1752579488942,0.98651748,678.36,677.64,0.99213858]
[1752579489241,0.98651748,678.36,677.68,0.99213858]
[1752579489742,0.98651748,678.38,677.71,0.99213858]
[1752579489941,0.98651748,678.4,677.73,0.99213858]
[1752579492346,0.98651748,678.4,677.74,0.99213858]
[1752579493249,0.98651748,678.39,677.74,0.99213858]
[1752579493543,0.98651748,678.4,677.74,0.99213858]
[1752579494145,0.98651748,678.39,677.74,0.99213858]
[1752579494948,0.98651748,678.4,677.74,0.99213858]
[1752579495251,0.98651748,678.42,677.76,0.99213858]
[1752579497348,0.98651748,678.42,677.63,1.3246655]
[1752579497349,0.98651748,678.38,677.79,0.99213858]
[1752579497852,0.98651748,678.52,677.83,0.99213858]
[1752579498248,0.98651748,678.52,677.84,0.99213858]
[1752579498453,0.98651748,678.53,677.83,0.99213858]
[1752579499154,0.98651748,678.52,677.83,0.99213858]
[1752579499455,0.98651748,678.53,677.83,0.99213858]
[1752579500156,0.98651748,678.52,677.83,0.99213858]
[1752579500452,0.98651748,678.53,677.83,0.99213858]
[1752579501155,0.98651748,678.52,677.83,0.99213858]
[1752579501351,0.98651748,678.53,677.83,0.99213858]
[1752579502051,0.98651748,678.52,677.84,0.99213858]
[1752579502352,0.98651748,678.53,677.83,0.99213858]
[1752579502653,0.98651748,678.52,677.84,0.99213858]
[1752579502852,0.98651748,678.62,677.93,0.99213858]
[1752579503056,0.98651748,678.64,677.95,0.99213858]
[1752579503253,0.98651748,678.64,677.94,0.99213858]
[1752579504156,0.98651748,678.64,677.95,0.99213858]
[1752579504354,0.98651748,678.65,677.94,0.99213858]
[1752579504657,0.98651748,678.68,677.98,0.99213858]
[1752579504858,0.98651748,678.74,678.03,0.99213858]
[1752579505156,0.98651748,678.73,678.03,0.99213858]
[1752579505353,0.98651748,678.74,678.02,0.99213858]
[1752579505657,0.98651748,678.75,678.02,0.99213858]
[1752579506059,0.98651748,678.76,678.02,0.99213858]
[1752579506356,0.98651748,678.76,678.01,0.99213858]
[1752579507256,0.98651748,678.77,678.0,0.99213858]
[1752579507860,0.98651748,678.75,678.01,0.99213858]
[1752579508258,0.98651748,678.75,678.0,0.99213858]
[1752579509359,0.98651748,678.76,677.99,0.99213858]
[1752579510360,0.98651748,678.77,677.98,0.99213858]
[1752579510856,0.98651748,678.77,677.97,0.99213858]
[1752579511256,0.98651748,678.79,677.95,0.99213858]
[1752579511860,0.98651748,678.78,677.96,0.99213858]
[1752579512058,0.98651748,678.79,677.96,0.99213858]
[1752579512261,0.98651748,678.79,677.95,0.99213858]
[1752579513260,0.98651748,678.8,677.94,0.99213858]
[1752579513561,0.98651748,678.82,677.92,0.99213858]
[1752579514161,0.25649625,678.83,677.94,0.99213858]
[1752579514360,0.25649625,678.83,677.93,0.99213858]
[1752579515965,0.25649625,678.83,677.92,0.99213858]
[1752579517366,0.25649625,678.83,677.91,0.99213858]
[1752579518267,0.25649625,678.83,677.9,0.99213858]
[1752579518565,0.98651748,678.78,677.96,0.99213858]
[1752579520265,0.98651748,678.78,677.95,0.99213858]
[1752579520664,0.98651748,678.82,677.93,0.99213858]
[1752579520866,0.98651748,678.82,677.92,0.99213858]
[1752579521263,1.24301373,678.83,677.91,0.99213858]
[1752579521664,0.98651748,678.81,677.89,0.99213858]
[1752579522168,0.25649625,678.83,677.85,0.99213858]
[1752579522565,0.98651748,678.79,677.78,0.99213858]
[1752579523765,0.25649625,678.83,677.74,0.99213858]
[1752579524967,0.25649625,678.83,677.68,0.99213858]
[1752579525170,0.98651748,678.79,677.68,0.99213858]
[1752579525667,0.98651748,678.78,677.68,0.99213858]
[1752579526167,0.25649625,678.83,677.37,0.2566968]
[1752579526168,0.98651748,678.79,677.67,0.99213858]
[1752579526372,0.98651748,678.79,677.68,0.99213858]
[1752579528071,0.98651748,678.79,677.67,0.99213858]
[1752579528270,0.98651748,678.79,677.68,0.99213858]
[1752579528571,0.98651748,678.77,677.69,0.99213858]
[1752579530472,0.98651748,678.78,677.69,0.99213858]
[1752579530671,0.25649625,678.83,677.49,1.3246655]
[1752579530878,0.98315333,678.78,677.69,0.98764633]
[1752579531272,0.98315333,678.77,677.69,0.98764633]
[1752579533272,0.98315333,678.77,677.5,1.3246655]
[1752579533273,0.98315333,678.77,677.7,0.98764633]
[1752579533577,0.98315333,678.73,677.73,0.98764633]
[1752579534075,0.98315333,678.72,677.73,0.98764633]
[1752579535178,0.98315333,678.71,677.75,0.98764633]
[1752579536078,0.98315333,678.69,677.76,0.98764633]
[1752579536278,0.98315333,678.69,677.77,0.98764633]
[1752579536675,0.98315333,678.73,677.81,0.98764633]
[1752579536875,0.98315333,678.75,677.84,0.98764633]
[1752579538280,0.98315333,678.75,677.85,0.98764633]
[1752579540782,0.98315333,678.74,677.85,0.98764633]
[1752579541377,0.98315333,678.72,677.87,0.98764633]
[1752579541681,0.98315333,678.75,677.9,0.98764633]
[1752579542378,0.98315333,678.75,677.91,0.98764633]
[1752579542880,0.98315333,678.76,677.9,0.98764633]
[1752579544284,0.98315333,678.76,677.91,0.98764633]
[1752579544584,0.98315333,678.75,677.91,0.98764633]
[1752579545479,0.98315333,678.75,677.92,0.98764633]
[1752579546384,0.98315333,678.74,677.93,0.98764633]
[1752579547185,0.98315333,678.74,677.94,0.98764633]
[1752579548283,0.98315333,678.74,677.95,0.98764633]
[1752579548481,0.98315333,678.72,677.97,0.98764633]
[1752579548685,0.98315333,678.72,677.96,0.98764633]
[1752579548885,0.25649625,678.83,677.97,0.98764633]
[1752579548886,0.98315333,678.71,677.97,0.98764633]
[1752579549284,0.98315333,678.71,677.98,0.98764633]
[1752579550685,0.98315333,678.7,677.98,0.98764633]
[1752579551384,0.98315333,678.7,677.99,0.98764633]
[1752579552385,0.98315333,678.69,678.0,0.98764633]
[1752579552688,0.98315333,678.67,678.01,0.98764633]
[1752579553188,0.98315333,678.67,678.02,0.98764633]
[1752579553989,0.98315333,678.66,678.03,0.98764633]
[1752579554389,0.98315333,678.66,678.04,0.98764633]
[1752579554889,0.98315333,678.68,678.02,0.98764633]
[1752579555189,0.98315333,678.67,678.03,0.98764633]
[1752579556191,0.98315333,678.66,678.04,0.98764633]
[1752579557488,0.98315333,678.65,678.05,0.98764633]
[1752579558392,0.98315333,678.64,678.06,0.98764633]
[1752579558592,0.98315333,678.67,678.04,0.98764633]
[1752579559192,0.98315333,678.66,678.04,0.98764633]
[1752579559488,0.98315333,678.69,678.03,0.98764633]
[1752579560392,0.98315333,678.67,678.03,0.98764633]
[1752579560889,0.98315333,678.66,678.04,0.98764633]
[1752579561793,0.98315333,678.63,678.06,0.98764633]
[1752579562293,0.98315333,678.57,678.02,0.98764633]
[1752579562893,0.98315333,678.56,678.0,0.98764633]
[1752579563091,0.98315333,678.51,677.95,0.98764633]
[1752579563389,0.98315333,678.48,677.92,0.98764633]
[1752579564088,0.98315333,678.48,677.91,0.98764633]
[1752579565193,0.98315333,678.49,677.91,0.98764633]
[1752579567194,0.98315333,678.49,677.9,0.98764633]
[1752579569193,0.98315333,678.5,677.9,0.98764633]
[1752579570594,0.98315333,678.48,677.91,0.98764633]
[1752579571191,1.3172578,678.61,677.91,0.99229509]
[1752579571395,0.9876166,678.48,677.91,0.99229509]
[1752579572496,0.9876166,678.47,677.92,0.99229509]
[1752579573197,0.9876166,678.47,677.91,0.99229509]
[1752579573993,0.9876166,678.47,677.92,0.99229509]
[1752579574194,0.9876166,678.47,677.91,0.99229509]
[1752579574698,0.9876166,678.59,677.83,0.99229509]
[1752579575997,0.9876166,678.56,677.8,0.99229509]
[1752579584104,0.9876166,678.56,677.79,0.99229509]
[1752579584604,0.9876166,678.49,677.84,0.99229509]
[1752579585305,0.9876166,678.46,677.86,0.99229509]
[1752579587706,0.9876166,678.46,677.62,1.9906825]
[1752579587707,0.9876166,678.47,677.85,0.99229509]
[1752579591416,1.3172578,678.59,677.85,0.99229509]
[1752579591713,1.3172578,678.59,677.73,1.3246655]
[1752579592313,1.9810952,678.72,677.73,1.3246655]
[1752579592512,1.9810952,678.72,677.6,1.9906825]
[1752579592818,0.25649625,678.83,677.37,0.2566968]
[1752579594014,0.9868526,678.43,677.81,0.99173879]
[1752579594515,0.9868526,678.44,677.81,0.99173879]
[1752579595115,0.98681918,678.44,677.81,0.99170533]
[1752579595818,0.98681918,678.5,677.76,0.99170533]
[1752579598818,0.98681918,678.51,677.76,0.99170533]
[1752579600514,0.98681918,678.51,677.75,0.99170533]
[1752579603115,0.98681918,678.5,677.75,0.99170533]
[1752579603514,0.98681918,678.51,677.75,0.99170533]
[1752579604218,0.98681918,678.5,677.75,0.99170533]
[1752579605620,0.98681918,678.45,677.78,0.99170533]
[1752579606819,1.3158034,678.59,677.64,1.3223183]
[1752579607016,0.98660686,678.45,677.78,0.99151988]
[1752579608620,0.98660686,678.43,677.79,0.99151988]
[1752579609319,0.98660686,678.43,677.8,0.99151988]
[1752579610623,0.98660686,678.41,677.78,0.99151988]
[1752579610919,0.98660686,678.4,677.78,0.99151988]
[1752579611223,0.98660686,678.41,677.78,0.99151988]
[1752579612224,0.98660686,678.4,677.79,0.99151988]
[1752579613224,0.98660686,678.41,677.79,0.99151988]
[1752579614025,1.3158034,678.53,677.66,1.3223183]
[1752579614226,0.9871441,678.39,677.8,0.99211706]
[1752579614926,0.9871441,678.38,677.8,0.99211706]
[1752579616023,0.9871441,678.38,677.81,0.99211706]
[1752579616826,0.9871441,678.37,677.81,0.99211706]
[1752579617229,0.9871441,678.37,677.82,0.99211706]
[1752579619030,0.9871441,678.36,677.82,0.99211706]
[1752579619229,0.9871441,678.35,677.83,0.99211706]
[1752579620132,0.9871441,678.34,677.84,0.99211706]
[1752579621033,0.9871441,678.34,677.85,0.99211706]
[1752579621230,0.9871441,678.33,677.85,0.99211706]
[1752579622334,0.9871441,678.32,677.87,0.99211706]
[1752579623330,0.9871441,678.31,677.87,0.99211706]
[1752579623831,0.9871441,678.32,677.87,0.99211706]
[1752579625234,0.9871441,678.31,677.87,0.99211706]
[1752579629233,0.9871441,678.31,677.88,0.99211706]
[1752579629534,0.9871441,678.31,677.55,0.2565927]
[1752579629535,0.9871441,678.32,677.87,0.99211706]
[1752579630237,0.9871441,678.38,677.83,0.99211706]
[1752579630438,0.9871441,678.44,677.88,0.99211706]
[1752579631239,0.9871441,678.44,677.89,0.99211706]
[1752579635035,0.9871441,678.46,677.88,0.99211706]
[1752579635338,0.9871441,678.48,677.9,0.99211706]
[1752579638636,0.9871441,678.49,677.91,0.99211706]
[1752579639943,0.9871441,678.48,677.91,0.99211706]
[1752579640243,0.9871441,678.46,677.93,0.99211706]
[1752579640937,0.9871441,678.46,677.92,0.99211706]
[1752579641839,0.9871441,678.47,677.92,0.99211706]
[1752579642142,0.9871441,678.47,677.91,0.99211706]
[1752579642439,0.9871441,678.46,677.9,0.99211706]
[1752579642639,0.9871441,678.46,677.91,0.99211706]
[1752579643743,0.9871441,678.45,677.89,0.99211706]
[1752579643937,0.9871441,678.44,677.89,0.99211706]
[1752579645839,0.9871441,678.44,677.9,0.99211706]
[1752579648347,0.9871441,678.43,677.89,0.99211706]
[1752579650041,0.9871441,678.41,677.86,0.99211706]
[1752579651243,0.9871441,678.4,677.86,0.99211706]
[1752579651443,0.25649625,678.83,677.87,0.99211706]
[1752579651444,0.9871441,678.37,677.87,0.99211706]
[1752579651647,0.9871441,678.36,677.85,0.99211706]
[1752579652250,0.9871441,678.31,677.8,0.99211706]
[1752579652851,0.9871441,678.3,677.8,0.99211706]
[1752579653448,0.9871441,678.26,677.76,0.99211706]
[1752579653752,0.9871441,678.26,677.55,0.2565927]
[1752579653753,0.9871441,678.24,677.74,0.99211706]
[1752579653950,0.9871441,678.25,677.74,0.99211706]
[1752579654253,0.9871441,678.25,677.73,0.99211706]
[1752579654553,0.9871441,678.25,677.74,0.99211706]
[1752579654752,0.9871441,678.19,677.68,0.99211706]
[1752579655148,0.9871441,678.19,677.67,0.99211706]
[1752579655448,0.9871441,678.2,677.67,0.99211706]
[1752579656154,0.9871441,678.21,677.66,0.99211706]
[1752579657352,0.9871441,678.22,677.65,0.99211706]
[1752579657554,0.9871441,678.21,677.65,0.99211706]
[1752579658256,0.9871441,678.22,677.64,0.99211706]
[1752579659158,0.9871441,678.23,677.64,0.99211706]
[1752579659454,0.25649625,678.83,677.55,0.2565927]
[1752579659658,1.9770938,678.49,677.55,0.2565927]
[1752579659857,0.98854691,678.23,677.64,0.99286417]
[1752579661359,0.98854691,678.23,677.63,0.99286417]
[1752579661658,0.98854691,678.22,677.61,0.99286417]
[1752579661957,0.25649625,678.83,677.55,1.24945687]
[1752579661958,0.98854691,678.15,677.55,1.24945687]
[1752579662259,0.98854691,678.15,677.55,0.2565927]
[1752579662455,0.98854691,678.17,677.55,0.2565927]
[1752579663066,0.98854691,678.16,677.55,0.2565927]
[1752579663267,0.98854691,678.17,677.55,0.2565927]
[1752579663866,0.98854691,678.18,677.55,0.2565927]
[1752579664863,0.98854691,678.19,677.55,0.2565927]
[1752579665064,0.98854691,678.21,677.55,0.2565927]
[1752579665263,0.98854691,678.26,677.56,0.99286417]
[1752579665467,0.98854691,678.26,677.55,1.24945687]
[1752579666566,0.98854691,678.3,677.55,0.2565927]
[1752579668464,0.98854691,678.31,677.55,0.2565927]
[1752579668967,0.98854691,678.3,677.55,0.2565927]
[1752579669164,0.98854691,678.31,677.55,0.2565927]
[1752579671366,0.98854691,678.32,677.55,0.2565927]
[1752579671570,0.98854691,678.31,677.55,0.2565927]
[1752579672468,0.98854691,678.32,677.55,0.2565927]
[1752579673171,0.98854691,678.29,677.55,0.2565927]
[1752579673872,0.98854691,678.27,677.55,0.2565927]
[1752579674372,0.98854691,678.28,677.55,0.2565927]
[1752579674871,0.98854691,678.27,677.55,0.2565927]
[1752579675069,0.98854691,678.28,677.55,0.2565927]
[1752579675668,0.98854691,678.29,677.55,0.2565927]
[1752579675969,0.98854691,678.28,677.55,0.2565927]
[1752579676569,0.98854691,678.29,677.55,0.2565927]
[1752579677772,0.98854691,678.26,677.55,0.2565927]
[1752579679275,0.98854691,678.27,677.55,0.2565927]
[1752579679671,0.98854691,678.26,677.55,0.2565927]
[1752579679970,0.98854691,678.27,677.55,0.2565927]
[1752579682071,0.98854691,678.28,677.55,0.2565927]
[1752579683276,0.98854691,678.27,677.55,0.2565927]
[1752579685177,0.98854691,678.28,677.55,0.2565927]
[1752579685377,0.98854691,678.27,677.55,0.2565927]
[1752579685578,0.98854691,678.28,677.55,0.2565927]
[1752579686979,0.98854691,678.27,677.55,0.2565927]
[1752579689080,0.98854691,678.25,677.55,0.2565927]
[1752579691681,0.98854691,678.24,677.55,0.2565927]
[1752579691983,0.98854691,678.22,677.55,0.2565927]
[1752579693483,0.98854691,678.24,677.55,0.2565927]
[1752579693683,0.98854691,678.23,677.55,0.2565927]
[1752579697085,0.98854691,678.18,677.55,0.2565927]
[1752579699281,0.98854691,678.17,677.55,0.2565927]
[1752579699581,0.98854691,678.18,677.55,0.2565927]
[1752579704189,0.98854691,678.17,677.55,0.2565927]
[1752579705585,0.98854691,678.19,677.55,0.2565927]
[1752579706185,0.98854691,678.18,677.55,0.2565927]
[1752579707588,0.98854691,678.22,677.55,0.2565927]
[1752579708286,0.98854691,678.21,677.55,0.2565927]
[1752579709183,0.98854691,678.2,677.55,0.2565927]
[1752579709688,0.98854691,678.19,677.55,0.2565927]
[1752579710190,0.98854691,678.18,677.55,0.2565927]
[1752579710389,0.25668544,678.26,677.55,0.2565927]
[1752579710589,0.98870277,678.17,677.55,0.2565927]
[1752579711185,0.98870277,678.16,677.55,0.2565927]
[1752579711889,0.98870277,678.18,677.55,0.2565927]
[1752579712386,0.98870277,678.17,677.55,1.2498008]
[1752579712585,0.98870277,678.22,677.61,0.9932081]
[1752579712790,0.98870277,678.24,677.62,0.9932081]
[1752579712986,0.98870277,678.24,677.63,0.9932081]
[1752579713185,0.98870277,678.23,677.64,0.9932081]
[1752579713588,0.98870277,678.23,677.63,0.9932081]
[1752579714190,0.98870277,678.23,677.64,0.9932081]
[1752579714895,0.98870277,678.26,677.67,0.9932081]
[1752579715392,0.98870277,678.23,677.69,0.9932081]
[1752579715693,0.98870277,678.22,677.7,0.9932081]
[1752579715889,0.98870277,678.29,677.65,0.9932081]
[1752579718291,0.98870277,678.29,677.64,0.9932081]
[1752579718590,0.98870277,678.3,677.65,0.9932081]
[1752579718792,0.98870277,678.29,677.64,0.9932081]
[1752579719096,0.98870277,678.29,677.65,0.9932081]
[1752579720492,0.98870277,678.31,677.66,0.9932081]
[1752579721092,0.98870277,678.33,677.65,0.9932081]
[1752579721298,0.98870277,678.34,677.67,0.9932081]
[1752579722498,0.98870277,678.28,677.7,0.9932081]
[1752579722700,0.98870277,678.28,677.71,0.9932081]
[1752579723097,0.98870277,678.28,677.7,0.9932081]
[1752579723402,0.98870277,678.28,677.71,0.9932081]
[1752579723602,0.98870277,678.29,677.7,0.9932081]
[1752579725804,0.98870277,678.25,677.73,0.9932081]
[1752579726001,0.98870277,678.25,677.55,0.2565927]
[1752579726002,0.98870277,678.31,677.79,0.9932081]
[1752579726405,0.98870277,678.31,677.55,0.2565927]
[1752579726406,0.98870277,678.32,677.78,0.9932081]
[1752579727102,0.98870277,678.33,677.8,0.9932081]
[1752579727602,0.98870277,678.36,677.81,0.9932081]
[1752579727805,0.98870277,678.36,677.8,0.9932081]
[1752579728001,0.98870277,678.36,677.81,0.9932081]
[1752579728502,0.98870277,678.37,677.8,0.9932081]
[1752579728707,0.98870277,678.36,677.8,0.9932081]
[1752579729406,0.98870277,678.39,677.78,0.9932081]
[1752579730508,0.98870277,678.4,677.78,0.9932081]
[1752579731306,0.98870277,678.4,677.77,0.9932081]
[1752579731903,0.98870277,678.41,677.77,0.9932081]
[1752579732404,0.98870277,678.41,677.76,0.9932081]
[1752579733404,0.98870277,678.42,677.76,0.9932081]
[1752579734307,0.98870277,678.42,677.75,0.9932081]
[1752579736316,0.98870277,678.43,677.75,0.9932081]
[1752579737514,0.98870277,678.43,677.74,0.9932081]
[1752579739515,0.98870277,678.4,677.76,0.9932081]
[1752579740317,0.98870277,678.4,677.75,0.9932081]
[1752579741913,0.98870277,678.39,677.75,0.9932081]
[1752579742915,0.98870277,678.43,677.73,0.9932081]
[1752579743417,0.98870277,678.43,677.72,0.9932081]
[1752579743815,0.98870277,678.43,677.73,0.9932081]
[1752579744418,0.98870277,678.43,677.72,0.9932081]
[1752579748422,0.98870277,678.44,677.72,0.9932081]
[1752579748620,0.98870277,678.44,677.71,0.9932081]
[1752579748819,0.98870277,678.45,677.71,0.9932081]
[1752579752328,0.98870277,678.47,677.72,0.9932081]
[1752579752623,0.98870277,678.46,677.73,0.9932081]
[1752579752824,0.98870277,678.49,677.77,0.9932081]
[1752579753427,0.98870277,678.5,677.77,0.9932081]
[1752579754529,0.98870277,678.51,677.76,0.9932081]
[1752579755928,0.98870277,678.53,677.74,0.9932081]
[1752579758328,0.98870277,678.53,677.75,0.9932081]
[1752579758632,0.25657378,678.59,677.7,0.9932081]
[1752579760427,0.25657378,678.59,677.71,0.9932081]
[1752579761526,1.24527655,678.59,677.71,0.9932081]
[1752579762031,0.25657378,678.59,677.71,0.9932081]
[1752579762428,1.24527655,678.59,677.71,0.9932081]
[1752579762729,0.25657378,678.59,677.73,0.9932081]
[1752579763033,0.25657378,678.59,677.74,0.9932081]
[1752579764430,0.25657378,678.59,677.75,0.9932081]
[1752579766429,0.25657378,678.59,677.76,0.9932081]
[1752579767331,0.25657378,678.59,677.77,0.9932081]
[1752579767728,0.25657378,678.59,677.76,0.9932081]
[1752579768030,0.25657378,678.59,677.77,0.9932081]
[1752579768432,0.98870277,678.54,677.81,0.9932081]
[1752579769031,0.98870277,678.52,677.83,0.9932081]
[1752579769533,0.98870277,678.51,677.83,0.9932081]
[1752579770235,0.98870277,678.51,677.84,0.9932081]
[1752579770435,0.98870277,678.5,677.84,0.9932081]
[1752579771333,0.98870277,678.5,677.85,0.9932081]
[1752579771537,0.98870277,678.51,677.87,0.9932081]
[1752579772034,0.98870277,678.5,677.87,0.9932081]
[1752579772537,0.98870277,678.54,677.93,0.9932081]
[1752579776241,0.98870277,678.54,677.94,0.9932081]
[1752579776942,0.98870277,678.57,677.97,0.9932081]
[1752579777339,0.98870277,678.57,677.96,0.9932081]
[1752579778242,0.98870277,678.57,677.97,0.9932081]
[1752579778439,0.98870277,678.59,677.99,0.9932081]
[1752579781645,0.25651232,678.77,677.55,0.2565927]
[1752579781646,0.98870277,678.65,678.05,0.9932081]
[1752579781843,0.98870277,678.66,678.04,0.9932081]